fUSD/lending_fUSD_20240613
["ID","MTS","AMOUNT","RATE_DAILY","PERIOD"]
[329398274,1718318017372,-2598.67,0.00026027,3]
[329398275,1718318017383,-546.28,0.00026027,3]
[329398276,1718318017475,-500.0,0.00026027,3]
[329398277,1718318017512,-500.0,0.00026027,3]
[329398278,1718318017526,-500.0,0.00026027,3]
[329398279,1718318017584,-749.23,0.00026027,3]
[329398280,1718318017599,-847.6,0.00026027,3]
[329398281,1718318017616,-586.22,0.00026027,3]
[329398282,1718318017643,-500.0,0.00026027,3]
[329398283,1718318017660,-897.66,0.00026027,3]
[329398284,1718318017674,-548.2348478,0.00026027,3]
[329398285,1718318017711,-500.0,0.00026027,3]
[329398286,1718318017762,-500.0,0.00026027,3]
[329398287,1718318017822,-1445.58,0.00026027,3]
[329398288,1718318017845,-500.0,0.00026027,3]
[329398289,1718318017940,-949.41,0.00026027,3]
[329398290,1718318017970,-500.0,0.00026027,3]
[329398291,1718318018026,-500.0,0.00026027,3]
[329398292,1718318018046,-6650.12,0.00026027,3]
[329398293,1718318018067,-500.0,0.00026027,3]
[329398294,1718318018083,-500.0,0.00026027,3]
[329398295,1718318018103,-500.0,0.00026027,3]
[329398296,1718318018115,-12130.87,0.00026027,3]
[329398297,1718318018166,-1848.94,0.00026027,3]
[329398298,1718318018190,-2355.91,0.00026027,3]
[329398299,1718318018217,-500.0,0.00026027,3]
[329398300,1718318018250,-1528.99,0.00026027,3]
[329398301,1718318018266,-500.0,0.00026027,3]
[329398302,1718318018288,-3587.22,0.00026027,3]
[329398303,1718318018316,-850.34,0.00026027,3]
[329398304,1718318018339,-500.0,0.00026027,3]
[329398305,1718318018368,-500.0,0.00026027,3]
[329398306,1718318018402,-500.0,0.00026027,3]
[329398307,1718318018425,-1008.9,0.00026027,3]
[329398308,1718318018455,-2339.95,0.00026027,3]
[329398309,1718318018481,-835.73,0.00026027,3]
[329398310,1718318018544,-521.12794019,0.00026027,3]
[329398311,1718318018583,-500.0,0.00026027,3]
[329398312,1718318018598,-500.0,0.00026027,3]
[329398313,1718318018640,-8253.71,0.00026027,3]
[329398314,1718318018695,-500.0,0.00026027,3]
[329398315,1718318018706,-2231.51,0.00026027,3]
[329398316,1718318018722,-500.0,0.00026027,3]
[329398317,1718318018736,-1261.14,0.00026027,3]
[329398318,1718318018749,-500.0,0.00026027,3]
[329398319,1718318018787,-500.0,0.00026027,3]
[329398320,1718318018836,-2581.37,0.00026027,3]
[329398321,1718318018847,-460.78,0.00026027,3]
[329398322,1718318018889,-500.0,0.00026027,3]
[329398323,1718318018932,-500.0,0.00026027,3]
[329398324,1718318018968,-595.23,0.00026027,3]
[329398325,1718318018993,-3093.67,0.00026027,3]
[329398326,1718318019005,-1681.53,0.00026027,3]
[329398327,1718318019088,-500.0,0.00026027,3]
[329398328,1718318019114,-500.0,0.00026027,3]
[329398329,1718318019130,-500.0,0.00026027,3]
[329398330,1718318019178,-6489.64,0.00026027,3]
[329398331,1718318019213,-2008.4,0.00026027,3]
[329398332,1718318019260,-500.0,0.00026027,3]
[329398333,1718318019297,-500.0,0.00026027,3]
[329398334,1718318019381,-500.0,0.00026027,3]
[329398335,1718318019440,-9362.18,0.00026027,3]
[329398336,1718318019464,-1686.82,0.00026027,3]
[329398337,1718318019485,-500.0,0.00026027,3]
[329398338,1718318019496,-500.0,0.00026027,3]
[329398339,1718318019533,-500.0,0.00026027,3]
[329398340,1718318019600,-500.0,0.00026027,3]
[329398341,1718318019625,-515.68127723,0.00026027,3]
[329398342,1718318019640,-500.0,0.00026027,3]
[329398343,1718318019668,-1664.82,0.00026027,3]
[329398344,1718318019728,-556.12,0.00026027,3]
[329398345,1718318019756,-500.0,0.00026027,3]
[329398346,1718318019804,-9104.14,0.00026027,3]
[329398347,1718318019878,-500.0,0.00026027,3]
[329398348,1718318019892,-725.13,0.00026027,3]
[329398349,1718318019905,-500.0,0.00026027,3]
[329398350,1718318019920,-500.0,0.00026027,3]
[329398351,1718318019935,-2019.62,0.00026027,3]
[329398352,1718318019948,-500.0,0.00026027,3]
[329398353,1718318019980,-1700.01,0.00026027,3]
[329398354,1718318020009,-500.0,0.00026027,3]
[329398355,1718318020020,-5899.8,0.00026027,3]
[329398356,1718318020030,-500.0,0.00026027,3]
[329398357,1718318020041,-500.0,0.00026027,3]
[329398358,1718318020071,-500.0,0.00026027,3]
[329398359,1718318020092,-1013.53,0.00026027,3]
[329398360,1718318020110,-1132.04,0.00026027,3]
[329398361,1718318020173,-500.0,0.00026027,3]
[329398362,1718318020210,-500.0,0.00026027,3]
[329398363,1718318020255,-1030.81,0.00026027,3]
[329398364,1718318020303,-1291.2,0.00026027,3]
[329398365,1718318020335,-501.26,0.00026027,3]
[329398366,1718318020353,-500.0,0.00026027,3]
[329398367,1718318020382,-500.0,0.00026027,3]
[329398368,1718318020421,-1624.02,0.00026027,3]
[329398369,1718318020439,-19599.65,0.00026027,3]
[329398370,1718318020453,-1893.88,0.00026027,3]
[329398371,1718318020480,-420.65183996,0.00026027,3]
[329398372,1718318020493,-307.30120911,0.00026027,3]
[329398373,1718318020524,-3814.39,0.00026027,3]
[329398374,1718318020576,-673.75,0.00026027,3]
[329398375,1718318020609,-500.0,0.00026027,3]
[329398376,1718318020621,-500.0,0.00026027,3]
[329398377,1718318020660,-1724.13,0.00026027,3]
[329398378,1718318020681,-1491.12,0.00026027,3]
[329398379,1718318020706,-2885.38,0.00026027,3]
[329398380,1718318020761,-590.65264114,0.00026027,3]
[329398381,1718318020797,-500.0,0.00026027,3]
[329398382,1718318020832,-500.0,0.00026027,3]
[329398383,1718318020861,-500.0,0.00026027,3]
[329398384,1718318020878,-2337.46,0.00026027,3]
[329398385,1718318020890,-500.0,0.00026027,3]
[329398386,1718318020954,-765.63,0.00026027,3]
[329398387,1718318020977,-922.52,0.00026027,3]
[329398388,1718318020992,-500.0,0.00026027,3]
[329398389,1718318021018,-500.0,0.00026027,3]
[329398390,1718318021034,-500.0,0.00026027,3]
[329398391,1718318021048,-24382.32,0.00026027,3]
[329398392,1718318021064,-965.22,0.00026027,3]
[329398393,1718318021100,-3318.36,0.00026027,3]
[329398394,1718318021111,-1458.83,0.00026027,3]
[329398395,1718318021132,-1978.36,0.00026027,3]
[329398396,1718318021160,-2647.12,0.00026027,3]
[329398397,1718318021174,-500.0,0.00026027,3]
[329398398,1718318021186,-500.0,0.00026027,3]
[329398399,1718318021198,-2164.24,0.00026027,3]
[329398400,1718318021209,-1243.96,0.00026027,3]
[329398401,1718318021220,-3628.12,0.00026027,3]
[329398402,1718318021244,-747.31,0.00026027,3]
[329398403,1718318021255,-2601.86,0.00026027,3]
[329398404,1718318021266,-500.0,0.00026027,3]
[329398405,1718318021279,-500.0,0.00026027,3]
[329398406,1718318021312,-500.0,0.00026027,3]
[329398407,1718318021371,-500.0,0.00026027,3]
[329398408,1718318021385,-500.0,0.00026027,3]
[329398409,1718318021407,-816.94,0.00026027,3]
[329398410,1718318021418,-1575.67,0.00026027,3]
[329398411,1718318021452,-2074.76,0.00026027,3]
[329398412,1718318021509,-500.0,0.00026027,3]
[329398413,1718318021545,-500.0,0.00026027,3]
[329398414,1718318021570,-2391.6,0.00026027,3]
[329398415,1718318021635,-6428.27,0.00026027,3]
[329398416,1718318021656,-500.0,0.00026027,3]
[329398417,1718318021676,-500.0,0.00026027,3]
[329398418,1718318021692,-500.0,0.00026027,3]
[329398419,1718318021704,-2407.08,0.00026027,3]
[329398420,1718318021733,-1745.74,0.00026027,3]
[329398421,1718318021752,-21434.9,0.00026027,3]
[329398422,1718318021779,-997.43,0.00026027,2]
[329398423,1718318021826,-691.98,0.00026027,3]
[329398424,1718318021843,-997.43,0.00026027,2]
[329398425,1718318021872,-997.43,0.00026027,2]
[329398426,1718318021886,-997.43,0.00026027,3]
[329398427,1718318021911,-997.43,0.00026027,3]
[329398428,1718318021925,-997.43,0.00026027,3]
[329398429,1718318022012,-997.43,0.00026027,3]
[329398430,1718318022063,-997.43,0.00026027,3]
[329398431,1718318022085,-500.0,0.00026027,3]
[329398432,1718318022104,-1032.0,0.00026027,3]
[329398433,1718318022114,-6103.08,0.00026027,3]
[329398434,1718318022125,-1149.23,0.00026027,3]
[329398435,1718318022150,-2869.14,0.00026027,3]
[329398436,1718318022161,-915.4,0.00026027,3]
[329398437,1718318022175,-1375.99,0.00026027,3]
[329398438,1718318022188,-3661.1,0.00026027,3]
[329398439,1718318022203,-530.64,0.00026027,3]
[329398440,1718318022216,-991.55,0.00026027,3]
[329398441,1718318022248,-521.21674198,0.00026027,3]
[329398442,1718318022267,-5356.85,0.00026027,3]
[329398443,1718318022300,-5226.34,0.00026027,3]
[329398444,1718318022313,-642.12,0.00026027,3]
[329398445,1718318022325,-500.0,0.00026027,3]
[329398446,1718318022339,-500.0,0.00026027,3]
[329398447,1718318022364,-500.0,0.00026027,3]
[329398448,1718318022389,-500.0,0.00026027,3]
[329398449,1718318022418,-500.0,0.00026027,3]
[329398450,1718318022429,-500.0,0.00026027,3]
[329398451,1718318022464,-500.0,0.00026027,3]
[329398452,1718318022509,-500.0,0.00026027,3]
[329398453,1718318022521,-2021.79,0.00026027,3]
[329398454,1718318022576,-594.9,0.00026027,3]
[329398455,1718318022608,-770.45,0.00026027,3]
[329398456,1718318022619,-1007.16,0.00026027,3]
[329398457,1718318022639,-500.0,0.00026027,3]
[329398458,1718318022650,-500.0,0.00026027,3]
[329398459,1718318022688,-2056.3,0.00026027,3]
[329398460,1718318022761,-1603.5,0.00026027,3]
[329398461,1718318022836,-525.41,0.00026027,3]
[329398462,1718318022856,-889.34,0.00026027,3]
[329398463,1718318022937,-500.0,0.00026027,3]
[329398464,1718318022977,-500.0,0.00026027,3]
[329398465,1718318023016,-500.0,0.00026027,3]
[329398466,1718318023053,-500.0,0.00026027,3]
[329398467,1718318023082,-1476.49,0.00026027,3]
[329398468,1718318023119,-500.0,0.00026027,3]
[329398469,1718318023136,-465.72962003,0.00026027,3]
[329398470,1718318023157,-500.0,0.00026027,3]
[329398471,1718318023191,-3621.26,0.00026027,3]
[329398472,1718318023203,-1642.42,0.00026027,3]
[329398473,1718318023214,-719.93,0.00026027,3]
[329398474,1718318023247,-500.0,0.00026027,3]
[329398475,1718318023274,-1966.27,0.00026027,3]
[329398476,1718318023305,-1173.79,0.00026027,3]
[329398477,1718318023322,-797.31,0.00026027,3]
[329398478,1718318023361,-2586.91,0.00026027,3]
[329398479,1718318023387,-500.0,0.00026027,3]
[329398480,1718318023436,-791.95,0.00026027,3]
[329398481,1718318023480,-500.0,0.00026027,3]
[329398482,1718318023504,-500.0,0.00026027,3]
[329398483,1718318023526,-500.0,0.00026027,3]
[329398484,1718318023572,-593.7,0.00026027,3]
[329398485,1718318023594,-500.0,0.00026027,3]
[329398486,1718318023615,-500.0,0.00026027,3]
[329398487,1718318023634,-5119.33,0.00026027,3]
[329398488,1718318023651,-500.0,0.00026027,3]
[329398489,1718318023676,-500.0,0.00026027,3]
[329398490,1718318023712,-500.0,0.00026027,3]
[329398491,1718318023748,-646.88,0.00026027,3]
[329398492,1718318023764,-500.0,0.00026027,3]
[329398493,1718318023789,-500.0,0.00026027,3]
[329398494,1718318023802,-500.0,0.00026027,3]
[329398495,1718318023844,-500.0,0.00026027,3]
[329398496,1718318023873,-500.0,0.00026027,3]
[329398497,1718318023899,-1705.27,0.00026027,3]
[329398498,1718318023940,-926.9,0.00026027,3]
[329398499,1718318023954,-966.46,0.00026027,3]
[329398500,1718318024003,-500.0,0.00026027,3]
[329398501,1718318024032,-994.62,0.00026027,3]
[329398502,1718318024080,-500.0,0.00026027,3]
[329398503,1718318024097,-4732.1,0.00026027,3]
[329398504,1718318024136,-2060.91,0.00026027,3]
[329398505,1718318024163,-1582.8,0.00026027,3]
[329398506,1718318024198,-500.0,0.00026027,3]
[329398507,1718318024254,-500.0,0.00026027,3]
[329398508,1718318024296,-217.48701148,0.00026027,3]
[329398509,1718318024336,-524.55,0.00026027,3]
[329398510,1718318024378,-500.0,0.00026027,3]
[329398511,1718318024408,-656.22,0.00026027,3]
[329398512,1718318024437,-500.0,0.00026027,3]
[329398513,1718318024465,-500.0,0.00026027,3]
[329398514,1718318024500,-2381.31,0.00026027,3]
[329398515,1718318024542,-790.25,0.00026027,3]
[329398516,1718318024591,-500.0,0.00026027,3]
[329398517,1718318024620,-500.0,0.00026027,3]
[329398518,1718318024634,-316.83251495,0.0002615,2]
[329398519,1718318024665,-417.05,0.00026164,2]
[329398520,1718318024705,-500.0,0.00026301,3]
[329398521,1718318024717,-500.0,0.00026301,3]
[329398522,1718318024782,-500.0,0.00026301,3]
[329398523,1718318024818,-500.0,0.00026301,3]
[329398524,1718318024893,-500.0,0.00026301,3]
[329398525,1718318024908,-277.4460953,0.00026301,3]
[329398526,1718318024933,-500.0,0.00026301,3]
[329398527,1718318024950,-500.0,0.00026301,3]
[329398528,1718318024980,-500.0,0.00026301,3]
[329398529,1718318024994,-500.0,0.00026301,3]
[329398530,1718318025032,-525.8,0.00026301,3]
[329398531,1718318025148,-500.0,0.00026301,3]
[329398532,1718318025173,-500.0,0.00026301,3]
[329398533,1718318025186,-500.0,0.00026301,3]
[329398534,1718318025236,-500.0,0.00026301,3]
[329398535,1718318025260,-500.0,0.00026301,3]
[329398536,1718318025318,-500.0,0.00026301,3]
[329398537,1718318025334,-500.0,0.00026301,3]
[329398538,1718318025357,-545.8931804,0.00026301,3]
[329398539,1718318025381,-500.0,0.00026301,3]
[329398540,1718318025397,-500.0,0.00026301,3]
[329398541,1718318025437,-500.0,0.00026301,3]
[329398542,1718318025468,-500.0,0.00026301,3]
[329398543,1718318025490,-550.62,0.00026301,3]
[329398544,1718318025516,-500.0,0.00026301,3]
[329398545,1718318025552,-500.0,0.00026301,3]
[329398546,1718318025565,-500.0,0.00026301,3]
[329398547,1718318025577,-500.0,0.00026301,3]
[329398548,1718318025592,-500.0,0.00026301,3]
[329398549,1718318025613,-500.0,0.00026301,3]
[329398550,1718318025628,-500.0,0.00026301,3]
[329398551,1718318025657,-500.0,0.00026301,3]
[329398552,1718318025681,-352.3100217,0.00026301,3]
[329398553,1718318025726,-500.0,0.00026301,3]
[329398554,1718318025739,-500.0,0.00026301,3]
[329398555,1718318025759,-550.02,0.00026301,3]
[329398556,1718318025797,-500.0,0.00026301,3]
[329398557,1718318025821,-500.0,0.00026301,3]
[329398558,1718318025833,-500.0,0.00026301,3]
[329398559,1718318025896,-500.0,0.00026301,3]
[329398560,1718318025917,-500.0,0.00026301,3]
[329398561,1718318025945,-500.0,0.00026301,3]
[329398562,1718318025978,-500.0,0.00026301,3]
[329398563,1718318025991,-500.0,0.00026301,3]
[329398564,1718318026004,-500.0,0.00026301,3]
[329398565,1718318026024,-500.0,0.00026301,3]
[329398566,1718318026049,-284.01186749,0.00026301,3]
[329398567,1718318026068,-500.0,0.00026301,3]
[329398568,1718318026095,-500.0,0.00026301,3]
[329398569,1718318026128,-500.0,0.00026301,3]
[329398570,1718318026144,-500.0,0.00026301,3]
[329398571,1718318026158,-500.0,0.00026301,3]
[329398572,1718318026176,-517.69831916,0.00026301,3]
[329398573,1718318026204,-500.0,0.00026301,3]
[329398574,1718318026234,-500.0,0.00026301,3]
[329398575,1718318026249,-500.0,0.00026301,3]
[329398576,1718318026281,-500.0,0.00026301,3]
[329398577,1718318026308,-500.0,0.00026301,3]
[329398578,1718318026326,-500.0,0.00026301,3]
[329398579,1718318026341,-500.0,0.00026301,3]
[329398580,1718318026359,-415.14312573,0.00026301,3]
[329398581,1718318026375,-598.19239237,0.00026301,3]
[329398582,1718318026388,-500.0,0.00026301,3]
[329398583,1718318026399,-500.0,0.00026301,3]
[329398584,1718318026436,-945.43,0.00026301,3]
[329398585,1718318026538,-530.40227286,0.00026301,3]
[329398586,1718318026600,-500.0,0.00026301,3]
[329398587,1718318026639,-500.0,0.00026301,3]
[329398588,1718318026651,-500.0,0.00026301,3]
[329398589,1718318026663,-500.0,0.00026301,3]
[329398590,1718318026675,-500.0,0.00026301,3]
[329398591,1718318026686,-500.0,0.00026301,3]
[329398592,1718318026756,-500.0,0.00026301,3]
[329398593,1718318026774,-500.0,0.00026301,3]
[329398594,1718318026816,-500.0,0.00026301,3]
[329398595,1718318026864,-870.29,0.00026301,3]
[329398596,1718318026893,-500.0,0.00026301,3]
[329398597,1718318026906,-500.0,0.00026301,3]
[329398598,1718318026929,-500.0,0.00026301,3]
[329398599,1718318026950,-500.0,0.00026301,3]
[329398600,1718318026970,-500.0,0.00026301,3]
[329398601,1718318026984,-500.0,0.00026301,3]
[329398602,1718318027004,-500.0,0.00026301,3]
[329398603,1718318027018,-500.0,0.00026301,3]
[329398604,1718318027047,-503.63,0.00026301,3]
[329398605,1718318027076,-500.0,0.00026301,3]
[329398606,1718318027097,-500.0,0.00026301,3]
[329398607,1718318027112,-308.03523282,0.00026301,3]
[329398608,1718318027127,-500.0,0.00026301,3]
[329398609,1718318027142,-500.0,0.00026301,3]
[329398610,1718318027156,-500.0,0.00026301,3]
[329398611,1718318027189,-500.0,0.00026301,3]
[329398612,1718318027216,-500.0,0.00026301,3]
[329398613,1718318027250,-500.0,0.00026301,3]
[329398614,1718318027353,-500.0,0.00026301,3]
[329398615,1718318027366,-500.0,0.00026301,3]
[329398616,1718318027379,-500.0,0.00026301,3]
[329398617,1718318027394,-500.0,0.00026301,3]
[329398618,1718318027424,-500.0,0.00026301,3]
[329398619,1718318027476,-500.0,0.00026301,3]
[329398620,1718318027494,-627.80494447,0.00026301,3]
[329398621,1718318027536,-622.38,0.00026301,3]
[329398622,1718318027568,-500.0,0.00026301,3]
[329398623,1718318027587,-500.0,0.00026301,3]
[329398624,1718318027634,-500.0,0.00026301,3]
[329398625,1718318027660,-868.07,0.00026301,3]
[329398626,1718318027708,-500.0,0.00026301,3]
[329398627,1718318027721,-500.0,0.00026301,3]
[329398628,1718318027769,-500.0,0.00026301,3]
[329398629,1718318027800,-500.0,0.00026301,3]
[329398630,1718318027819,-500.0,0.00026301,3]
[329398631,1718318027832,-500.0,0.00026301,3]
[329398632,1718318027854,-500.0,0.00026301,3]
[329398633,1718318027871,-500.0,0.00026301,3]
[329398634,1718318027888,-500.0,0.00026301,3]
[329398635,1718318027907,-500.0,0.00026301,3]
[329398636,1718318027936,-500.0,0.00026301,3]
[329398637,1718318027952,-500.0,0.00026301,3]
[329398638,1718318027978,-500.0,0.00026301,3]
[329398639,1718318027997,-500.0,0.00026301,3]
[329398640,1718318028015,-816.24,0.00026301,3]
[329398641,1718318028052,-500.0,0.00026301,3]
[329398642,1718318028068,-500.0,0.00026301,3]
[329398643,1718318028089,-500.0,0.00026301,3]
[329398644,1718318028118,-500.0,0.00026301,3]
[329398645,1718318028161,-384.32010034,0.00026301,3]
[329398646,1718318028192,-500.0,0.00026301,3]
[329398647,1718318028206,-500.0,0.00026301,3]
[329398648,1718318028220,-500.0,0.00026301,3]
[329398649,1718318028231,-500.0,0.00026301,3]
[329398650,1718318028246,-500.0,0.00026301,3]
[329398651,1718318028261,-500.0,0.00026301,3]
[329398652,1718318028278,-500.0,0.00026301,3]
[329398653,1718318028333,-500.0,0.00026301,3]
[329398654,1718318028346,-500.0,0.00026301,3]
[329398655,1718318028377,-500.0,0.00026301,3]
[329398656,1718318028395,-165.05,0.00026301,3]
[329398657,1718318028412,-500.0,0.00026301,3]
[329398658,1718318028444,-500.0,0.00026301,3]
[329398659,1718318028456,-657.97,0.00026301,3]
[329398660,1718318028484,-500.0,0.00026301,3]
[329398661,1718318028510,-500.0,0.00026301,3]
[329398662,1718318028557,-500.0,0.00026301,3]
[329398663,1718318028592,-500.0,0.00026301,3]
[329398664,1718318028627,-500.0,0.00026301,3]
[329398665,1718318028663,-500.0,0.00026301,3]
[329398666,1718318028692,-727.36,0.00026301,3]
[329398667,1718318028720,-500.0,0.00026301,3]
[329398668,1718318028750,-500.0,0.00026301,3]
[329398669,1718318028794,-363.41,0.00026301,3]
[329398670,1718318028812,-500.0,0.00026301,3]
[329398671,1718318028845,-500.0,0.00026301,3]
[329398672,1718318028885,-500.0,0.00026301,3]
[329398673,1718318028910,-184.24,0.00026301,3]
[329398674,1718318028960,-500.0,0.00026301,3]
[329398675,1718318028975,-1439.75,0.00026301,3]
[329398676,1718318029013,-500.0,0.00026301,3]
[329398677,1718318029028,-512.80125039,0.00026301,3]
[329398678,1718318029052,-500.0,0.00026301,3]
[329398679,1718318029076,-500.0,0.00026301,3]
[329398680,1718318029104,-558.67,0.00026301,3]
[329398681,1718318029117,-500.0,0.00026301,3]
[329398682,1718318029141,-541.69832362,0.00026301,3]
[329398683,1718318029178,-500.0,0.00026301,3]
[329398684,1718318029224,-500.0,0.00026301,3]
[329398685,1718318029270,-500.0,0.00026301,3]
[329398686,1718318029289,-536.50705783,0.00026301,3]
[329398687,1718318029306,-500.0,0.00026301,3]
[329398688,1718318029328,-500.0,0.00026301,3]
[329398689,1718318029340,-500.0,0.00026301,3]
[329398690,1718318029357,-500.0,0.00026301,3]
[329398691,1718318029381,-500.0,0.00026301,3]
[329398692,1718318029394,-832.47,0.00026301,3]
[329398693,1718318029407,-500.0,0.00026301,3]
[329398694,1718318029419,-545.67,0.00026301,3]
[329398695,1718318029451,-500.0,0.00026301,3]
[329398696,1718318029483,-500.0,0.00026301,3]
[329398697,1718318029499,-500.0,0.00026301,3]
[329398698,1718318029516,-500.0,0.00026301,3]
[329398699,1718318029558,-637.85,0.00026301,3]
[329398700,1718318029645,-500.0,0.00026301,3]
[329398701,1718318029660,-619.68,0.00026301,3]
[329398702,1718318029678,-500.0,0.00026301,3]
[329398703,1718318029690,-500.0,0.00026301,3]
[329398704,1718318029726,-500.0,0.00026301,3]
[329398705,1718318029772,-500.0,0.00026301,3]
[329398706,1718318029811,-500.0,0.00026301,3]
[329398707,1718318029824,-500.0,0.00026301,3]
[329398708,1718318029892,-500.0,0.00026301,3]
[329398709,1718318029905,-500.0,0.00026301,3]
[329398710,1718318029931,-500.0,0.00026301,3]
[329398711,1718318029948,-500.0,0.00026301,3]
[329398712,1718318029963,-500.0,0.00026301,3]
[329398713,1718318030024,-500.0,0.00026301,3]
[329398714,1718318030038,-500.0,0.00026301,3]
[329398715,1718318030067,-500.0,0.00026301,3]
[329398716,1718318030113,-509.13447419,0.00026301,3]
[329398717,1718318030153,-500.0,0.00026301,3]
[329398718,1718318030173,-500.0,0.00026301,3]
[329398719,1718318030187,-500.0,0.00026301,3]
[329398720,1718318030205,-500.0,0.00026301,3]
[329398721,1718318030216,-500.0,0.00026301,3]
[329398722,1718318030240,-500.0,0.00026301,3]
[329398723,1718318030268,-500.0,0.00026301,3]
[329398724,1718318030306,-591.31,0.00026301,3]
[329398725,1718318030336,-500.0,0.00026301,3]
[329398726,1718318030402,-500.0,0.00026301,3]
[329398727,1718318030425,-500.0,0.00026301,3]
[329398728,1718318030458,-500.0,0.00026301,3]
[329398729,1718318030481,-500.0,0.00026301,3]
[329398730,1718318030518,-500.0,0.00026301,3]
[329398731,1718318030570,-500.0,0.00026301,3]
[329398732,1718318030583,-500.0,0.00026301,3]
[329398733,1718318030602,-500.0,0.00026301,3]
[329398734,1718318030633,-500.0,0.00026301,3]
[329398735,1718318030648,-500.0,0.00026301,3]
[329398736,1718318030722,-500.0,0.00026301,3]
[329398737,1718318030757,-500.0,0.00026301,3]
[329398738,1718318030773,-500.0,0.00026301,3]
[329398739,1718318030812,-558.44,0.00026301,3]
[329398740,1718318030832,-500.0,0.00026301,3]
[329398741,1718318030848,-534.52,0.00026301,3]
[329398742,1718318031122,-500.0,0.00026301,3]
[329398743,1718318031138,-500.0,0.00026301,3]
[329398744,1718318031164,-500.0,0.00026301,3]
[329398745,1718318031246,-500.0,0.00026301,3]
[329398746,1718318031258,-500.0,0.00026301,3]
[329398747,1718318031285,-446.46,0.00026301,3]
[329398748,1718318031299,-500.0,0.00026301,3]
[329398749,1718318031313,-500.0,0.00026301,3]
[329398750,1718318031327,-614.2,0.00026301,3]
[329398751,1718318031338,-500.0,0.00026301,3]
[329398752,1718318031353,-193.39842438,0.00026301,3]
[329398753,1718318031367,-500.0,0.00026301,3]
[329398754,1718318031392,-500.0,0.00026301,3]
[329398755,1718318031416,-500.0,0.00026301,3]
[329398756,1718318031427,-500.0,0.00026301,3]
[329398757,1718318031452,-500.0,0.00026301,3]
[329398758,1718318031488,-500.0,0.00026301,3]
[329398759,1718318031516,-611.98,0.00026301,3]
[329398760,1718318031528,-500.0,0.00026301,3]
[329398761,1718318031551,-500.0,0.00026301,3]
[329398762,1718318031569,-500.0,0.00026301,3]
[329398763,1718318031610,-500.0,0.00026301,3]
[329398764,1718318031629,-500.0,0.00026301,3]
[329398765,1718318031660,-500.0,0.00026301,3]
[329398766,1718318031672,-973.83,0.00026301,3]
[329398767,1718318031686,-500.0,0.00026301,3]
[329398768,1718318031697,-500.0,0.00026301,3]
[329398769,1718318031714,-565.65686633,0.00026301,3]
[329398770,1718318031733,-500.0,0.00026301,3]
[329398771,1718318031749,-500.0,0.00026301,3]
[329398772,1718318031775,-500.0,0.00026301,3]
[329398773,1718318031823,-500.0,0.00026301,3]